fUSD/lending_fUSD_20260402
["ID","MTS","AMOUNT","RATE_DAILY","PERIOD"]
[419300249,1775130643970,-101946.24660792,0.00015813,2]
[419300250,1775130643979,-7085.6014341,0.00015813,2]
[419300251,1775130643989,-853.21932307,0.00015825,2]
[419300252,1775130643998,-500.0,0.00015873,2]
[419300253,1775130644007,-261.17324766,0.00015873,2]
[419300254,1775130644016,-163.53544722,0.00015873,2]
[419300255,1775130644025,-500.0,0.00015873,2]
[419300256,1775130644034,-509.88873086,0.00015873,2]
[419300257,1775130644044,-2000.0,0.0001589,2]
[419300258,1775130644053,-500.0,0.00015899,2]
[419300259,1775130644064,-500.0,0.00015899,2]
[419300260,1775130644074,-518.65929478,0.00015899,2]
[419300261,1775130644083,-2900.0,0.000159,5]
[419300262,1775130644093,-151.0,0.00015906,2]
[419300263,1775130644102,-151.0,0.00015906,2]
[419300264,1775130644111,-500.0,0.00015908,2]
[419300265,1775130644120,-500.0,0.00015908,2]
[419300266,1775130644129,-192.63667107,0.00015908,2]
[419300267,1775130644138,-500.0,0.00015908,2]
[419300268,1775130644147,-500.0,0.00015908,2]
[419300269,1775130644156,-500.0,0.00015908,2]
[419300270,1775130644167,-500.0,0.00015908,2]
[419300271,1775130644176,-506.69955504,0.00015908,2]
[419300272,1775130644185,-500.0,0.00015908,2]
[419300273,1775130644194,-500.0,0.00015908,2]
[419300274,1775130644203,-500.0,0.00015908,2]
[419300275,1775130644212,-500.0,0.00015908,2]
[419300276,1775130644221,-500.0,0.00015908,2]
[419300277,1775130644230,-549.05,0.00015908,2]
[419300278,1775130644239,-549.05,0.00015908,2]
[419300279,1775130644248,-549.05,0.00015908,2]
[419300280,1775130644259,-549.05,0.00015908,2]
[419300281,1775130644269,-549.05,0.00015908,2]
[419300282,1775130644278,-500.0,0.00015909,2]
[419300283,1775130644287,-500.0,0.00015973,2]
[419300284,1775130644297,-162.0,0.00015991,2]
[419300285,1775130644306,-4000.0,0.00015997,2]
[419300286,1775130644316,-500.0,0.00015998,2]
[419300287,1775130644326,-200.0,0.00016,2]
[419300288,1775130644335,-278.24927245,0.00016,2]
[419300289,1775130644344,-166.66,0.00016044,2]
[419300290,1775130644353,-296.6,0.00016064,2]
[419300291,1775130644363,-151.0,0.00016069,2]
[419300292,1775130644373,-3923.0,0.00016072,2]
[419300293,1775130644382,-500.0,0.00016073,2]
[419300294,1775130644391,-177.64891112,0.00016091,2]
[419300295,1775130644400,-278.24927245,0.000161,2]
[419300296,1775130644410,-3923.0,0.00016118,2]
[419300297,1775130644418,-3923.0,0.00016119,2]
[419300298,1775130644428,-151.3,0.0001617,2]
[419300299,1775130644438,-151.3,0.0001617,2]
[419300300,1775130644448,-151.3,0.0001617,2]
[419300301,1775130644457,-151.29,0.0001617,2]
[419300302,1775130644466,-3923.0,0.00016197,2]
[419300303,1775130644476,-151.08,0.00016197,2]
[419300304,1775130644485,-3923.0,0.00016197,2]
[419300305,1775130644494,-278.24927245,0.000162,2]
[419300306,1775130644503,-1046.96,0.00016216,2]
[419300307,1775130644512,-174.18690206,0.0001622,2]
[419300308,1775130644522,-3923.0,0.00016251,2]
[419300309,1775130644532,-500.0,0.00016272,2]
[419300310,1775130644541,-166.66,0.00016285,2]
[419300311,1775130644550,-881.27,0.00016288,2]
[419300312,1775130644559,-1000.0,0.00016321,2]
[419300313,1775130644568,-1000.0,0.00016321,2]
[419300314,1775130644577,-761.58740434,0.00016321,2]
[419300315,1775130644586,-1000.0,0.00016321,2]
[419300316,1775130644596,-1000.0,0.00016321,2]
[419300317,1775130644605,-213.840276,0.00016332,7]
[419300318,1775130644614,-252.354371,0.00016332,7]
[419300319,1775130644623,-296.6,0.00016338,2]
[419300320,1775130644634,-4000.0,0.00016387,2]
[419300321,1775130644643,-3923.0,0.00016397,2]
[419300322,1775130644652,-150.0,0.000164,2]
[419300323,1775130644661,-307.98744808,0.000164,2]
[419300324,1775130644671,-1000.0,0.00016421,2]
[419300325,1775130644681,-3923.0,0.00016427,2]
[419300326,1775130644690,-441.0,0.00016438,2]
[419300327,1775130644699,-441.0,0.00016438,2]
[419300328,1775130644709,-441.0,0.00016438,2]
[419300329,1775130644718,-441.0,0.00016438,2]
[419300330,1775130644727,-441.0,0.00016438,2]
[419300331,1775130644736,-441.0,0.00016438,2]
[419300332,1775130644745,-441.0,0.00016438,2]
[419300333,1775130644755,-441.0,0.00016438,2]
[419300334,1775130644764,-441.0,0.00016438,2]
[419300335,1775130644774,-441.0,0.00016438,2]
[419300336,1775130644783,-441.0,0.00016438,2]
[419300337,1775130644792,-441.0,0.00016438,2]
[419300338,1775130644801,-441.0,0.00016438,2]
[419300339,1775130644810,-441.0,0.00016438,2]
[419300340,1775130644819,-441.0,0.00016438,2]
[419300341,1775130644829,-441.0,0.00016438,2]
[419300342,1775130644838,-441.0,0.00016438,2]
[419300343,1775130644846,-441.0,0.00016438,2]
[419300344,1775130644856,-441.0,0.00016438,2]
[419300345,1775130644865,-441.0,0.00016438,2]
[419300346,1775130644874,-441.0,0.00016438,2]
[419300347,1775130644883,-441.0,0.00016438,2]
[419300348,1775130644893,-441.0,0.00016438,2]
[419300349,1775130644903,-458.40261194,0.00016438,2]
[419300350,1775130644913,-2500.0,0.00016438,2]
[419300351,1775130644922,-2500.0,0.00016438,2]
[419300352,1775130644932,-2500.0,0.00016438,2]
[419300353,1775130644940,-2500.0,0.00016438,2]
[419300354,1775130644950,-2500.0,0.00016438,2]
[419300355,1775130644961,-2500.0,0.00016438,2]
[419300356,1775130644971,-2500.0,0.00016438,2]
[419300357,1775130644980,-2500.0,0.00016438,2]
[419300358,1775130644990,-150.0,0.00016438,2]
[419300359,1775130644998,-152.78,0.00016438,2]
[419300360,1775130645007,-165.888215,0.00016441,7]
[419300361,1775130645016,-195.765815,0.00016441,7]
[419300362,1775130645025,-1930.89693021,0.0001647,2]
[419300363,1775130645034,-500.70581269,0.0001647,2]
[419300364,1775130645044,-3159.02119794,0.000165,5]
[419300365,1775130645053,-2000.0,0.000165,2]
[419300366,1775130645062,-200.0,0.000165,2]
[419300367,1775130645071,-200.0,0.000165,2]
[419300368,1775130645080,-150.0,0.000165,2]
[419300369,1775130645089,-200.0,0.000165,2]
[419300370,1775130645099,-775.47720931,0.00016521,2]
[419300371,1775130645108,-337.97256879,0.00016546,2]
[419300372,1775130645118,-449.65057533,0.00016561,2]
[419300373,1775130645128,-781.43,0.00016562,2]
[419300374,1775130645137,-162.0,0.00016581,2]
[419300375,1775130645147,-500.0,0.00016587,2]
[419300376,1775130645157,-296.6,0.00016612,2]
[419300377,1775130645166,-224.28659877,0.00016621,2]
[419300378,1775130645176,-2000.0,0.00016624,2]
[419300379,1775130645186,-1571.0,0.00016631,2]
[419300380,1775130645195,-1325.59545764,0.00016665,2]
[419300381,1775130645204,-200.0,0.00016665,2]
[419300382,1775130645212,-200.0,0.00016665,2]
[419300383,1775130645221,-200.0,0.00016665,2]
[419300384,1775130645231,-162.0,0.0001668,2]
[419300385,1775130645241,-157.21,0.00016712,2]
[419300386,1775130645250,-3923.0,0.00016713,2]
[419300387,1775130645259,-400.0,0.0001677,2]
[419300388,1775130645268,-4000.0,0.00016777,2]
[419300389,1775130645278,-166.66,0.00016805,2]
[419300390,1775130645287,-785.32,0.00016831,2]
[419300391,1775130645296,-200.0,0.00016832,2]
[419300392,1775130645306,-200.0,0.00016832,2]
[419300393,1775130645315,-200.0,0.00016832,2]
[419300394,1775130645325,-3923.0,0.00016859,2]
[419300395,1775130645333,-500.0,0.00016864,2]
[419300396,1775130645343,-3923.0,0.00016867,2]
[419300397,1775130645352,-1500.0,0.00016868,2]
[419300398,1775130645361,-1000.0,0.00016868,2]
[419300399,1775130645371,-501.40120114,0.00016868,2]
[419300400,1775130645380,-296.64672335,0.00016886,2]
[419300401,1775130645389,-4400.0,0.000169,6]
[419300402,1775130645399,-3923.0,0.00016913,2]
[419300403,1775130645408,-3923.0,0.0001693,2]
[419300404,1775130645417,-162.0,0.0001693,2]
[419300405,1775130645426,-3923.0,0.0001693,2]
[419300406,1775130645435,-3923.0,0.00016931,2]
[419300407,1775130645444,-500.0,0.0001695,2]
[419300408,1775130645453,-3923.0,0.00016951,2]
[419300409,1775130645463,-1380.70129313,0.00016968,2]
[419300410,1775130645472,-400.0,0.0001697,2]
[419300411,1775130645481,-1000.0,0.0001697,2]
[419300412,1775130645490,-1046.96,0.00016988,2]
[419300413,1775130645499,-187.81990173,0.0001699,2]
[419300414,1775130645509,-549.05,0.00016998,2]
[419300415,1775130645518,-500.0,0.00016999,2]
[419300416,1775130645527,-500.0,0.00016999,2]
[419300417,1775130645536,-500.0,0.00016999,2]
[419300419,1775130645546,-2500.0,0.00016999,2]
[419300421,1775130645555,-206386.71735923,0.00017,2]
[419300422,1775130645564,-200.0,0.00017,2]
[419300423,1775130645573,-200.0,0.00017,2]
[419300424,1775130645582,-200.0,0.00017,2]
[419300426,1775130645591,-151.08,0.00017049,2]
[419300427,1775130645600,-651.99398304,0.00017074,2]
[419300428,1775130645783,-3271.00601696,0.00017074,2]
[419300429,1775130645815,-3923.0,0.00017093,2]
[419300430,1775130645825,-785.32,0.00017105,2]
[419300431,1775130645835,-326.407609,0.00017161,2]
[419300432,1775130645845,-4000.0,0.00017167,2]
[419300433,1775130645854,-200.0,0.0001717,2]
[419300434,1775130645864,-200.0,0.0001717,2]
[419300435,1775130645874,-200.0,0.0001717,2]
[419300436,1775130645884,-3923.0,0.00017217,2]
[419300437,1775130645894,-166.66,0.00017326,2]
[419300438,1775130645903,-222.14815,0.00017329,2]
[419300439,1775130645912,-462.329189,0.00017332,2]
[419300440,1775130645923,-312.217059,0.00017332,2]
[419300441,1775130645932,-462.329189,0.00017332,2]
[419300442,1775130645942,-500.0,0.00017332,2]
[419300443,1775130645953,-312.217059,0.00017332,2]
[419300444,1775130645963,-462.329189,0.00017332,2]
[419300445,1775130645973,-312.217059,0.00017332,2]
[419300446,1775130645982,-312.217059,0.00017332,2]
[419300447,1775130645992,-462.329189,0.00017332,2]
[419300448,1775130646001,-154.340058,0.00017332,2]
[419300449,1775130646011,-3923.0,0.00017332,2]
[419300450,1775130646020,-151.0,0.00017416,2]
[419300451,1775130646029,-151.0,0.00017416,2]
[419300452,1775130646039,-162.38313,0.00017416,2]
[419300453,1775130646048,-622.014952,0.00017416,2]
[419300454,1775130646057,-622.014952,0.00017416,2]
[419300455,1775130646067,-622.014952,0.00017416,2]
[419300456,1775130646076,-622.014952,0.00017416,2]
[419300457,1775130646086,-2000.0,0.00017416,2]
[419300458,1775130646095,-3923.0,0.00017444,2]
[419300459,1775130646105,-1625.9212746,0.00017454,2]
[419300460,1775130646125,-742.79429451,0.00017454,2]
[419300461,1775130646890,-1298.79411701,0.00014973,2]
[419300462,1775130646900,-1554.28443089,0.00017454,2]
[419300463,1775130646910,-549.05,0.00017501,2]
[419300464,1775130646920,-2360.99040968,0.00017502,2]
[419300465,1775130649340,-483.98972764,0.00015051,2]
[419300472,1775130787692,-500.0,0.00014192,2]
[419300473,1775130797585,27343.1714,0.000139,2]
[419300474,1775130801705,-101802.8286,0.00015052,2]
[419300525,1775131160519,548.0,8.31e-05,2]
[419300526,1775131161422,154.66,7.9e-05,2]
[419300528,1775131333447,-5361.42,0.000139,2]
[419300536,1775131833067,-2020.50949651,0.00011,2]
[419300537,1775131833077,-273.2879,0.000138,2]
[419300538,1775131833087,-929.4115,0.000138,2]
[419300539,1775131833097,-2500.0,0.00013849,2]
[419300540,1775131833106,-391.90267615,0.00013897,2]
[419300541,1775131833184,-0.96079117,0.00013897,2]
[419300552,1775131838156,-751.46967322,0.00013897,2]
[419300593,1775131840957,-43.66685946,0.00013897,2]
[419300594,1775131840967,-300.0,0.00013898,2]
[419300595,1775131840977,-406.33462505,0.00013899,2]
[419300596,1775131841119,-1971.71837029,0.00013899,2]
[419300597,1775131841128,-9538.68708353,0.000139,2]
[419300598,1775131841147,-416.51276811,0.000139,2]
[419300599,1775131841254,-948.6678402,0.000139,2]
[419300601,1775131841277,-4073.63438323,0.000139,2]
[419300613,1775131843754,-7.8e-07,0.000139,2]
[419300614,1775131843825,-545.12863543,0.000139,2]
[419300648,1775131849316,-1230.00615062,0.000139,2]
[419300649,1775131849424,-508.075,0.000139,2]
[419300650,1775131849530,-6487.99999678,0.000139,2]
[419300664,1775132367333,567.91,8.31e-05,2]
[419300685,1775133032380,-432.09,0.00011507,2]
[419300686,1775133032396,-250.0,0.00013,2]
[419300687,1775133032409,-194.01675595,0.00013,2]
[419300689,1775133032426,-191.0507169,0.00013524,2]
[419300691,1775133032440,-1885.684,0.00013524,2]
[419300692,1775133032455,-500.0,0.00013673,2]
[419300693,1775133032472,-1035.0,0.00013699,2]
[419300694,1775133032483,-150.0,0.00013699,2]
[419300695,1775133032497,-731.33084832,0.000137,2]
[419300696,1775133032512,-6973.6711,0.000137,2]
[419300697,1775133032527,-692.592,0.000137,2]
[419300698,1775133032541,-25265.76530328,0.000137,2]
[419300699,1775133032555,-2500.0,0.000137,2]
[419300700,1775133032570,-8659.749092,0.000137,2]
[419300701,1775133032583,-1484.97619007,0.000137,2]
[419300702,1775133032599,-500.48315369,0.00013773,2]
[419300703,1775133032615,-500.0,0.00013773,2]
[419300704,1775133032629,-500.0,0.00013773,2]
[419300705,1775133032642,-227.25348961,0.00013773,2]
[419300706,1775133032656,-502.48397435,0.00013773,2]
[419300707,1775133032669,-500.0,0.00013773,2]
[419300708,1775133032682,-159.91138824,0.00013773,2]
[419300709,1775133032695,-164.98377626,0.00013773,2]
[419300710,1775133032709,-500.0,0.00013773,2]
[419300711,1775133032720,-200.0,0.00013792,2]
[419300712,1775133032731,-500.0,0.00013792,2]
[419300713,1775133032746,-500.0,0.00013792,2]
[419300714,1775133032758,-500.0,0.00013792,2]
[419300715,1775133032771,-548.83756294,0.00013792,2]
[419300716,1775133032784,-151.0,0.00013792,2]
[419300717,1775133032798,-153.43679859,0.00013792,2]
[419300718,1775133032811,-209.45605623,0.00013799,2]
[419300719,1775133032825,-249.16695945,0.00013799,2]
[419300720,1775133032844,-250.83304055,0.00013799,2]
[419300721,1775133032859,-163.77872858,0.00013799,2]
[419300722,1775133032878,-500.0,0.00013799,2]
[419300723,1775133032890,-500.0,0.00013799,2]
[419300724,1775133032901,-400.07708762,0.00013799,2]
[419300725,1775133032912,-578.51347418,0.00013799,2]
[419300726,1775133032924,-500.0,0.00013799,2]
[419300727,1775133032939,-39.34541377,0.00013799,2]
[419300728,1775133032956,-460.65458623,0.00013799,2]
[419300729,1775133032968,-500.0,0.00013799,2]
[419300730,1775133032980,-178.76373577,0.00013799,2]
[419300731,1775133032994,-500.0,0.00013799,2]
[419300732,1775133033008,-500.0,0.00013799,2]
[419300733,1775133033023,-500.0,0.00013799,2]
[419300734,1775133033036,-500.0,0.00013799,2]
[419300735,1775133033050,-500.0,0.00013799,2]
[419300736,1775133033063,-500.0,0.00013799,2]
[419300737,1775133033075,-207.1830908,0.00013799,2]
[419300738,1775133033087,-500.0,0.00013799,2]
[419300739,1775133033099,-500.0,0.00013799,2]
[419300740,1775133033117,-500.0,0.00013799,2]
[419300741,1775133033172,-500.0,0.00013799,2]
[419300742,1775133033185,-500.0,0.00013799,2]
[419300743,1775133033200,-500.0,0.00013799,2]
[419300744,1775133033213,-500.0,0.00013799,2]
[419300745,1775133033228,-500.0,0.00013799,2]
[419300746,1775133033243,-83.55876081,0.00013799,2]
[419300749,1775133041175,-453.61438779,0.000137,2]
[419300750,1775133041187,-2046.38561221,0.000137,2]
[419300751,1775133041197,-416.44123919,0.00013799,2]
[419300752,1775133041206,-500.0,0.00013799,2]
[419300753,1775133041216,-500.0,0.00013799,2]
[419300754,1775133041226,-500.0,0.00013799,2]
[419300755,1775133041236,-500.0,0.00013799,2]
[419300756,1775133041246,-500.0,0.00013799,2]
[419300757,1775133041257,-228.18303549,0.00013799,2]
[419300758,1775133041267,-500.0,0.00013799,2]
[419300759,1775133041277,-500.0,0.00013799,2]
[419300760,1775133041286,-500.0,0.00013799,2]
[419300761,1775133041296,-500.0,0.00013799,2]
[419300762,1775133041305,-500.0,0.00013799,2]
[419300763,1775133041314,-500.0,0.00013799,2]
[419300764,1775133041324,-500.0,0.00013799,2]
[419300765,1775133041333,-500.0,0.00013799,2]
[419300766,1775133041343,-500.0,0.00013799,2]
[419300767,1775133041353,-500.0,0.00013799,2]
[419300768,1775133041363,-32634.6200153,0.000138,2]
[419300769,1775133041376,-19029.13707399,0.000138,2]
[419300770,1775133041408,-597.032921,0.000138,2]
[419300771,1775133041429,-6667.26990554,0.000138,2]
[419300772,1775133041450,-65999.99999995,0.000138,2]
[419300773,1775133041463,-759.27687937,0.000138,2]
[419300774,1775133041475,-3655.15536478,0.000138,2]
[419300775,1775133041487,-2921.16893894,0.000138,2]
[419300776,1775133041498,-1665.44142218,0.000138,2]
[419300777,1775133041565,-661.17995,0.000138,2]
[419300778,1775133041689,-26463.00154004,0.000138,2]
[419300779,1775133041701,-9939.75344302,0.000138,2]
[419300783,1775133041935,-3300.0,0.000138,2]
[419300785,1775133041947,-606.6000014,0.000138,2]
[419300786,1775133041958,-618.03445751,0.000138,2]
[419300787,1775133041969,-849.51188492,0.000138,2]
[419300802,1775133043429,-2640.0,0.000138,2]
[419300813,1775133046217,-2162.57149339,0.000138,2]
[419300814,1775133046238,-2627.397,0.000138,2]
[419300815,1775133046250,-89636.45869453,0.000138,2]
[419300816,1775133046507,-17198.33181195,0.000138,2]
[419300817,1775133046519,-990.24,0.000138,2]
[419300826,1775133488854,-318.27,0.00013194,2]
[419300827,1775133488884,-681.73,0.00013524,2]
[419300828,1775133491151,-826.817,0.00013524,2]
[419300829,1775133491173,-173.183,0.00013673,2]
[419300830,1775133492319,-326.817,0.00013673,2]
[419300831,1775133492343,-500.0,0.00013673,2]
[419300832,1775133492366,-173.183,0.00013673,2]
[419300833,1775133493524,-426.80569951,0.00013673,2]
[419300834,1775133493550,-500.0,0.00013673,2]
[419300835,1775133493574,-73.19430049,0.00013673,2]
[419300836,1775133495112,-426.80569951,0.00013673,2]
[419300837,1775133495136,-500.0,0.00013673,2]
[419300838,1775133495163,-73.19430049,0.00013699,2]
[419300839,1775133496161,-417.76229951,0.00013699,2]
[419300840,1775133496185,-582.23770049,0.00013699,2]
[419300841,1775133497196,-297.42072537,0.00013699,2]
[419300842,1775133497221,-150.0,0.00013699,2]
[419300843,1775133497247,-552.57927463,0.000137,2]
[419300844,1775133519604,-1000.0,0.000137,2]
[419300845,1775133520702,-1000.0,0.000137,2]
[419300846,1775133521649,-1000.0,0.000137,2]
[419300871,1775133959141,1215.29784843,8.31e-05,2]
[419300875,1775134182575,933.0,7.875e-05,2]
[419300881,1775134232493,-150.0,0.00012896,2]
[419300882,1775134232503,-150.0,0.00012999,2]
[419300883,1775134232513,-160.37705361,0.00012999,2]
[419300884,1775134232522,-200.0,0.000131,2]
[419300885,1775134232532,-901.31138874,0.00013328,2]
[419300886,1775134232544,-305.52661126,0.00013328,2]
[419300887,1775134232554,-8439.0,0.00013402,2]
[419300888,1775134232564,-1200.0,0.00013499,2]
[419300889,1775134232574,-657.0206,0.000135,2]
[419300890,1775134232583,-9904.05989208,0.000135,2]
[419300891,1775134232592,-2191.27618869,0.000135,2]
[419300892,1775134232602,-505.0,0.000135,2]
[419300893,1775134232612,-176.8395639,0.00013599,2]
[419300894,1775134232623,-500.0,0.00013599,2]
[419300895,1775134232634,-500.0,0.00013599,2]
[419300896,1775134232644,-500.0,0.00013599,2]
[419300898,1775134232654,-329.6750186,0.00013599,2]
[419300900,1775134232664,-500.0,0.00013599,2]
[419300903,1775134232674,-500.0,0.00013599,2]
[419300905,1775134232685,-627.87637358,0.00013599,2]
[419300906,1775134232694,-500.0,0.00013599,2]
[419300908,1775134232705,-500.0,0.00013599,2]
[419300910,1775134232717,-500.0,0.00013599,2]
[419300911,1775134232728,-627.73346971,0.00013599,2]
[419300912,1775134232738,-70136.70862376,0.000136,2]
[419300926,1775134241324,-4845.28,0.000136,2]
[419300927,1775134241533,-5000.3,0.000136,2]
[419300928,1775134241570,-400.0,0.000136,2]
[419300930,1775134243543,-500.0,0.000136,2]
[419300931,1775134243647,-1910.53271847,0.000136,2]
[419300932,1775134243857,-5531.0,0.000136,2]
[419300933,1775134243913,-13515.63262764,0.000136,2]
[419300934,1775134243925,-3310.18290615,0.000136,2]
[419300944,1775134246379,-37482.46161074,0.000136,2]
[419300945,1775134246391,-1165.06140755,0.000136,2]
[419300946,1775134246402,-3970.14,0.000136,2]
[419300947,1775134246434,-950.43221416,0.000136,2]
[419300948,1775134246445,-4418.88196997,0.000136,2]
[419300949,1775134246548,-807.51110822,0.000136,2]
[419300950,1775134246560,-8851.24173821,0.000136,2]
[419300951,1775134246654,-2030.19999996,0.000136,2]
[419300952,1775134246666,-28028.11980498,0.000136,2]
[419300960,1775134553380,200.97,6.953e-05,2]
[419300961,1775134553814,200.97,7.318e-05,2]
[419300962,1775134554029,200.97,7.684e-05,2]
[419300963,1775134554225,200.97,8.05e-05,2]
[419300964,1775134609506,166.24,0.000151,120]
[419300967,1775134733152,804.07,8.133e-05,2]
[419300973,1775135223167,443.41,7.65e-05,2]
[419300974,1775135285456,756.47,7.965e-05,2]
[419300979,1775135347421,245.25,7.802e-05,2]
[419300987,1775135431907,-270.0,8.416e-05,2]
[419300988,1775135431917,-200.97,8.416e-05,2]
[419300989,1775135431925,-200.97,8.782e-05,2]
[419300990,1775135431934,-200.97,9.148e-05,2]
[419300992,1775135431943,-250.0,9.258e-05,2]
[419300993,1775135431952,-150.0,9.51e-05,2]
[419300995,1775135431962,-150.0,9.51e-05,2]
[419300997,1775135431972,-200.97,9.514e-05,2]
[419300999,1775135431981,-200.97,9.88e-05,2]
[419301001,1775135431990,-200.97,0.00010246,2]
[419301003,1775135431999,-198.62,0.0001055,2]
[419301005,1775135432011,-200.97,0.00010612,2]
[419301007,1775135432020,-200.97,0.00010978,2]
[419301009,1775135432029,-265.97442139,0.00011151,2]
[419301011,1775135432041,-140.02557861,0.00011151,2]
[419301013,1775135432050,-289.53,0.00011194,2]
[419301015,1775135432059,-200.97,0.00011344,2]
[419301017,1775135432068,-250.0,0.00011381,2]
[419301019,1775135432077,-191.00508003,0.00011509,2]
[419301020,1775135432086,-150.0,0.000116,2]
[419301021,1775135432095,-200.97,0.00011709,2]
[419301022,1775135432105,-150.0,0.00011822,2]
[419301023,1775135432114,-300.0,0.00011822,2]
[419301024,1775135432123,-300.0,0.00011822,2]
[419301025,1775135432132,-24.94476838,0.00011822,2]
[419301026,1775135432164,-299.23478,0.00011822,2]
[419301027,1775135432176,-756.35463349,0.00011822,2]
[419301028,1775135432188,-119.46581813,0.00011822,2]
[419301031,1775135432198,-217.0,0.00011822,2]
[419301032,1775135432207,-300.0,0.00011822,2]
[419301035,1775135432216,-200.0,0.00011823,2]
[419301037,1775135432229,-500.0,0.00011823,2]
[419301040,1775135432238,-151.0,0.00011823,2]
[419301042,1775135432247,-151.0,0.00011823,2]
[419301044,1775135432256,-151.0,0.00011823,2]
[419301046,1775135432265,-151.0,0.00011823,2]
[419301048,1775135432274,-151.0,0.00011823,2]
[419301050,1775135432284,-151.0,0.00011823,2]
[419301052,1775135432293,-151.0,0.00011823,2]
[419301054,1775135432302,-22.83149435,0.00011823,2]
[419301055,1775135432314,-128.16850565,0.00011823,2]
[419301057,1775135432323,-151.0,0.00011823,2]
[419301059,1775135432333,-1.55149435,0.00011823,2]
[419301061,1775135432344,-149.44850565,0.00011823,2]
[419301063,1775135432353,-151.0,0.00011823,2]
[419301064,1775135432361,-500.0,0.00011823,2]
[419301066,1775135432369,-628.61275219,0.00011823,2]
[419301068,1775135432378,-1532.0,0.0001183,2]
[419301070,1775135432387,-303.0,0.0001183,2]
[419301071,1775135432396,-965.0,0.00011853,2]
[419301073,1775135432405,-200.97,0.00012075,2]
[419301075,1775135432414,-200.0,0.00012213,2]
[419301077,1775135432423,-500.0,0.00012304,2]
[419301079,1775135432432,-215.15562511,0.00012304,2]
[419301080,1775135432441,-150.0,0.00012304,2]
[419301081,1775135432451,-150.0,0.00012304,2]
[419301082,1775135432460,-150.0,0.00012304,2]
[419301083,1775135432469,-150.0,0.00012304,2]
[419301084,1775135432481,-150.0,0.00012304,2]
[419301085,1775135432492,-150.0,0.00012304,2]
[419301086,1775135432501,-150.0,0.00012304,2]
[419301087,1775135432510,-150.0,0.00012304,2]
[419301088,1775135432520,-150.0,0.00012304,2]
[419301089,1775135432530,-150.0,0.00012304,2]
[419301090,1775135432539,-150.0,0.00012304,2]
[419301091,1775135432549,-150.0,0.00012304,2]
[419301092,1775135432558,-150.0,0.00012304,2]
[419301093,1775135432568,-150.0,0.0001234,2]
[419301094,1775135432577,-150.0,0.0001234,2]
[419301095,1775135432586,-150.0,0.00012341,2]
[419301096,1775135432595,-150.0,0.00012342,2]
[419301097,1775135432605,-150.0,0.00012348,2]
[419301098,1775135432616,-150.0,0.00012364,2]
[419301099,1775135432626,-200.0,0.00012371,2]
[419301100,1775135432635,-150.0,0.00012376,2]
[419301101,1775135432644,-150.0,0.00012376,2]
[419301102,1775135432653,-150.0,0.00012378,2]
[419301103,1775135432663,-150.0,0.0001238,2]
[419301104,1775135432672,-150.0,0.0001239,2]
[419301105,1775135432682,-150.0,0.00012392,2]
[419301106,1775135432692,-567.72496,0.00012407,2]
[419301107,1775135432701,-524.293267,0.00012407,2]
[419301108,1775135432711,-150.0,0.00012412,2]
[419301109,1775135432720,-150.0,0.00012412,2]